bitfinex/quotes_SOLUSD_20240616
["timestamp","ask_amount","ask_price","bid_price","bid_amount"]
[1718496487471,24.8963,145.47,145.35,5.61]
[1718496487472,5.61,145.45,145.35,5.61]
[1718496487672,21.5704,145.44,145.39,5.61]
[1718496490075,21.5704,145.44,145.38,5.61]
[1718496490275,11.9169,145.43,145.38,5.61]
[1718496491479,6.3069,145.43,145.38,5.61]
[1718496501329,6.3069,145.43,145.32,44.40980992]
[1718496501543,6.3069,145.43,145.3,126.62487433]
[1718496501544,15.9009,145.41,145.3,15.2978]
[1718496501834,5.61,145.4,145.35,5.61]
[1718496503232,5.61,145.4,145.33,0.17]
[1718496509215,21.5109,145.41,145.33,0.17]
[1718496509537,15.9009,145.41,145.33,0.68]
[1718496519257,21.5109,145.41,145.33,0.68]
[1718496519659,21.5109,145.41,145.35,5.61]
[1718496520030,8.5492,145.4,145.3,5.5033633]
[1718496520229,5.61,145.39,145.33,5.61]
[1718496523757,16.2445,145.38,145.33,5.61]
[1718496524063,5.61,145.35,145.28,5.49229904]
[1718496524234,5.61,145.35,145.29,5.61]
[1718496525943,5.61,145.35,145.3,5.61]
[1718496527165,5.61,145.36,145.3,5.61]
[1718496527855,5.61,145.36,145.31,5.61]
[1718496529840,6.0045,145.37,145.31,5.61]
[1718496530029,11.6145,145.37,145.31,5.61]
[1718496531566,5.61,145.36,145.31,5.61]
[1718496535056,11.6145,145.37,145.31,5.61]
[1718496541269,5.61,145.36,145.31,5.61]
[1718496541864,6.0045,145.37,145.29,0.17]
[1718496542069,6.0045,145.37,145.34,5.61]
[1718496542449,16.2445,145.38,145.34,5.61]
[1718496542766,21.9599,145.41,145.36,5.61]
[1718496542941,21.9599,145.41,145.38,5.61]
[1718496544069,21.9599,145.45,145.4,5.61]
[1718496544377,21.9599,145.45,145.41,5.61]
[1718496549179,21.9599,145.45,145.4,5.61]
[1718496549772,21.9599,145.45,145.35,0.17]
[1718496549978,5.61,145.43,145.38,5.61]
[1718496557857,21.9599,145.45,145.31,8.01611463]
[1718496558060,5.61,145.41,145.35,5.61]
[1718496558470,5.61,145.41,145.36,5.61]
[1718496558795,5.61,145.43,145.37,5.61]
[1718496559097,5.61,145.43,145.38,5.61]
[1718496561871,5.61,145.43,145.37,5.61]
[1718496562987,5.61,145.42,145.36,5.61]
[1718496566376,21.9599,145.45,145.37,5.61]
[1718496566584,5.61,145.44,145.38,5.61]
[1718496567977,21.9599,145.45,145.38,5.61]
[1718496568176,5.61,145.44,145.38,5.61]
[1718496570303,21.9599,145.45,145.39,5.61]
[1718496570517,21.9599,145.45,145.41,5.61]
[1718496574613,279.14,145.53,145.42,5.61]
[1718496574803,11.8165,145.49,145.44,5.61]
[1718496575112,6.2065,145.49,145.45,5.61]
[1718496579333,13.8358,145.49,145.44,5.61]
[1718496580940,19.4458,145.49,145.44,5.61]
[1718496582027,27.0752,145.49,145.43,5.61]
[1718496582229,37.2477,145.49,145.43,5.61]
[1718496582613,2.5433,145.48,145.43,5.61]
[1718496582814,37.2478,145.49,145.43,5.61]
[1718496583238,19.4459,145.49,145.43,5.61]
[1718496583531,27.0752,145.49,145.43,5.61]
[1718496584213,19.4459,145.49,145.43,5.61]
[1718496584733,27.0752,145.49,145.43,5.61]
[1718496584915,19.4459,145.49,145.43,5.61]
[1718496585232,19.4459,145.49,145.36,13.55608996]
[1718496585233,5.61,145.46,145.36,13.55608996]
[1718496585436,5.61,145.46,145.41,5.61]
[1718496585808,2.5434,145.48,145.41,5.61]
[1718496585809,5.61,145.47,145.41,5.61]
[1718496586445,13.2404,145.47,145.38,0.17]
[1718496586612,5.61,145.46,145.41,5.61]
[1718496588931,5.61,145.47,145.41,5.61]
[1718496593246,5.61,145.47,145.38,0.68]
[1718496593456,5.61,145.47,145.41,5.61]
[1718496594979,5.61,145.47,145.42,5.61]
[1718496600626,5.61,145.48,145.42,5.61]
[1718496600858,6.2065,145.49,145.43,5.61]
[1718496601039,6.2065,145.49,145.44,5.61]
[1718496602255,6.2065,145.49,145.45,5.61]
[1718496602951,6.2065,145.49,145.46,5.61]
[1718496603260,6.2065,145.49,145.45,5.61]
[1718496605428,6.2065,145.49,145.46,5.61]
[1718496605752,6.2065,145.49,145.47,5.61]
[1718496606342,6.2065,145.49,145.45,5.61]
[1718496607471,6.2065,145.49,145.46,5.61]
[1718496609436,6.2065,145.49,145.45,5.61]
[1718496610355,6.2065,145.49,145.44,5.61]
[1718496617059,5.61,145.48,145.4,5.56664798]
[1718496617365,5.61,145.47,145.41,5.61]
[1718496619256,5.61,145.48,145.42,5.61]
[1718496619468,6.2065,145.49,145.4,0.17]
[1718496619655,6.2065,145.49,145.46,5.61]
[1718496619854,6.2065,145.49,145.47,5.61]
[1718496620977,6.2065,145.49,145.46,5.61]
[1718496621364,6.2065,145.49,145.45,5.61]
[1718496631856,6.2065,145.49,145.44,5.61]
[1718496634283,11.8165,145.49,145.41,5.60296825]
[1718496634478,11.8165,145.49,145.43,5.61]
[1718496637384,5.61,145.46,145.37,20.0]
[1718496637583,21.2906,145.46,145.36,15.7290628]
[1718496637778,21.2906,145.46,145.4,5.61]
[1718496640294,21.2906,145.46,145.37,0.17]
[1718496640594,21.2906,145.46,145.4,5.61]
[1718496641094,5.61,145.45,145.4,5.61]
[1718496643466,15.6806,145.46,145.42,5.61]
[1718496646297,15.6806,145.46,145.41,5.61]
[1718496646501,21.2906,145.46,145.41,5.61]
[1718496648788,5.61,145.44,145.36,8.01646751]
[1718496648990,15.8456,145.42,145.36,5.61]
[1718496649306,5.61,145.41,145.36,5.61]
[1718496650275,5.61,145.41,145.34,5.63380992]
[1718496650581,5.61,145.39,145.34,5.63380992]
[1718496650903,5.61,145.39,145.33,5.61]
[1718496655211,5.61,145.39,145.3,5.50889543]
[1718496655212,5.61,145.38,145.31,0.17]
[1718496655394,15.9033,145.37,145.28,15.7290628]
[1718496655602,15.9033,145.37,145.3,5.61]
[1718496655603,5.61,145.36,145.3,5.61]
[1718496656498,5.61,145.36,145.31,5.61]
[1718496656679,5.61,145.36,145.29,0.17]
[1718496656975,5.61,145.36,145.31,5.61]
[1718496659028,15.9033,145.37,145.31,5.61]
[1718496659310,21.5133,145.37,145.31,5.61]
[1718496659512,21.5133,145.37,145.32,5.61]
[1718496664317,15.9033,145.37,145.32,5.61]
[1718496664513,21.5133,145.37,145.32,5.61]
[1718496666329,15.9033,145.37,145.32,5.61]
[1718496666539,15.9033,145.37,145.35,5.61]
[1718496667625,15.9033,145.37,145.34,5.61]
[1718496667833,15.9033,145.37,145.29,0.17]
[1718496667834,15.9033,145.37,145.33,5.61]
[1718496672744,15.9033,145.37,145.29,0.17]
[1718496672909,15.9033,145.37,145.32,5.61]
[1718496673930,15.9033,145.37,145.33,5.61]
[1718496675739,15.9033,145.37,145.35,5.61]
[1718496682022,15.9033,145.37,145.34,5.61]
[1718496693754,23.1267,145.41,145.35,5.61]
[1718496694062,28.7367,145.41,145.36,5.61]
[1718496694266,23.1267,145.41,145.36,5.61]
[1718496694452,28.7367,145.41,145.36,5.61]
[1718496695081,23.1267,145.41,145.36,5.61]
[1718496695244,23.1267,145.41,145.37,5.61]
[1718496696262,23.1267,145.41,145.38,5.61]
[1718496696691,16.605,145.41,145.38,5.61]
[1718496696853,6.294,145.44,145.4,5.61]
[1718496697189,16.605,145.45,145.43,5.61]
[1718496697378,6.294,145.48,145.4,0.17]
[1718496697556,22.899,145.48,145.44,5.61]
[1718496702589,22.899,145.48,145.4,0.68]
[1718496702754,8.1535,145.47,145.36,115.1881]
[1718496702956,5.61,145.46,145.4,5.61]
[1718496705003,5.61,145.46,145.41,5.61]
[1718496706674,5.61,145.46,145.38,0.17]
[1718496706869,5.61,145.46,145.41,5.61]
[1718496707383,5.61,145.46,145.4,5.61]
[1718496712796,5.61,145.46,145.41,5.61]
[1718496714098,5.61,145.47,145.41,5.61]
[1718496717915,22.899,145.48,145.38,0.68]
[1718496717916,5.61,145.45,145.38,0.68]
[1718496718211,5.61,145.44,145.39,5.61]
[1718496718581,5.61,145.45,145.39,5.61]
[1718496718994,5.61,145.46,145.4,5.61]
[1718496724030,5.61,145.46,145.37,0.17]
[1718496724332,5.61,145.45,145.4,5.61]
[1718496726028,5.61,145.45,145.39,5.61]
[1718496727299,5.61,145.45,145.36,20.77728695]
[1718496727499,5.61,145.42,145.34,6.0093]
[1718496727712,5.61,145.42,145.37,5.61]
[1718496728312,5.61,145.42,145.34,11.48274431]
[1718496728629,5.61,145.42,145.37,5.61]
[1718496731802,16.365,145.44,145.37,5.61]
[1718496732031,5.61,145.43,145.38,5.61]
[1718496732347,21.975,145.44,145.38,5.61]
[1718496734512,5.61,145.43,145.37,5.61]
[1718496735110,5.61,145.42,145.37,5.61]
[1718496739534,5.61,145.43,145.37,5.61]
[1718496739949,5.61,145.43,145.36,0.51]
[1718496739950,21.975,145.44,145.38,5.61]
[1718496740624,5.61,145.43,145.35,0.17]
[1718496740825,5.61,145.43,145.35,0.68]
[1718496741161,16.365,145.44,145.36,5.61]
[1718496741459,5.61,145.42,145.36,5.61]
[1718496743110,5.61,145.42,145.35,0.17]
[1718496743313,5.61,145.42,145.37,5.61]
[1718496743541,5.61,145.42,145.36,5.61]
[1718496746717,5.61,145.42,145.37,5.61]
[1718496751024,5.61,145.42,145.36,5.61]
[1718496752524,22.5453,145.44,145.33,8.01646751]
[1718496752730,5.61,145.4,145.35,5.61]
[1718496753045,5.61,145.4,145.34,5.61]
[1718496754130,5.61,145.4,145.35,5.61]
[1718496754533,22.5453,145.44,145.33,5.78102135]
[1718496754745,22.5453,145.44,145.37,5.61]
[1718496754930,5.61,145.43,145.37,5.61]
[1718496760045,5.61,145.43,145.34,0.51]
[1718496760046,5.61,145.43,145.36,5.61]
[1718496760834,5.61,145.42,145.36,5.61]
[1718496761830,22.5453,145.44,145.35,0.17]
[1718496762031,37.8094,145.44,145.36,5.61]
[1718496762248,5.61,145.42,145.36,5.61]
[1718496763062,5.61,145.42,145.35,0.17]
[1718496763238,5.61,145.42,145.36,5.61]
[1718496763439,5.61,145.41,145.35,5.78]
[1718496764935,5.61,145.41,145.35,5.61]
[1718496765141,5.61,145.4,145.34,5.61]
[1718496765359,5.61,145.4,145.35,5.61]
[1718496766066,5.61,145.4,145.34,0.17]
[1718496766365,5.61,145.4,145.35,5.61]
[1718496766860,5.61,145.4,145.34,0.17]
[1718496767064,5.61,145.4,145.35,5.61]
[1718496768251,5.61,145.41,145.35,5.61]
[1718496772452,5.61,145.4,145.35,5.61]
[1718496772647,7.6325,145.43,145.35,5.61]
[1718496772848,5.61,145.4,145.35,5.61]
[1718496773048,5.61,145.4,145.34,5.61]
[1718496776183,45.6121,145.44,145.32,21.63281175]
[1718496776184,5.0892,145.41,145.32,21.63281175]
[1718496776464,5.61,145.38,145.32,21.63281175]
[1718496776675,5.61,145.38,145.33,5.61]
[1718496776965,5.61,145.39,145.33,5.61]
[1718496777551,25.2593,145.44,145.34,5.61]
[1718496777772,5.61,145.4,145.34,5.61]
[1718496778451,5.61,145.4,145.35,5.61]
[1718496783463,2.5442,145.43,145.36,5.61]
[1718496783675,28.1553,145.44,145.39,5.61]
[1718496783879,21.975,145.44,145.39,5.61]
[1718496784373,6.1356,145.47,145.4,5.61]
[1718496784578,6.1356,145.47,145.41,5.61]
[1718496784874,11.7456,145.47,145.41,5.61]
[1718496785083,11.7456,145.47,145.42,5.61]
[1718496785276,11.7456,145.47,145.36,15.2519]
[1718496785277,5.61,145.46,145.36,15.2519]
[1718496785453,5.61,145.46,145.4,5.61]
[1718496791784,6.1356,145.47,145.4,5.61]
[1718496791991,5.61,145.46,145.4,5.61]
[1718496793565,6.1356,145.47,145.4,5.61]
[1718496793783,5.61,145.46,145.4,5.61]
[1718496797169,5.61,145.45,145.4,5.61]
[1718496800564,6.1356,145.47,145.4,5.61]
[1718496800767,5.61,145.45,145.4,5.61]
[1718496801187,5.61,145.46,145.4,5.61]
[1718496805108,5.61,145.44,145.38,5.61]
[1718496808704,5.61,145.44,145.36,20.70394799]
[1718496808917,5.61,145.43,145.37,5.61]
[1718496809496,2.5438,145.45,145.36,15.0819]
[1718496809710,5.61,145.41,145.36,20.6919]
[1718496810421,0.51,145.44,145.36,20.6919]
[1718496810725,5.61,145.42,145.36,20.6919]
[1718496812632,16.8347,145.44,145.35,5.61]
[1718496812833,5.61,145.4,145.34,6.4455]
[1718496812997,5.61,145.4,145.35,5.61]
[1718496813508,5.61,145.4,145.34,12.0555]
[1718496814214,5.61,145.4,145.34,6.4455]
[1718496814613,5.61,145.4,145.34,12.0555]
[1718496815114,5.61,145.39,145.34,12.0555]
[1718496815317,5.61,145.38,145.32,15.6642]
[1718496815517,5.61,145.38,145.32,21.2742]
[1718496816408,5.61,145.38,145.32,15.6642]
[1718496816729,5.61,145.38,145.32,21.2742]
[1718496817104,8.3248,145.39,145.3,6.3223]
[1718496817308,5.61,145.35,145.3,11.9323]
[1718496817513,5.61,145.35,145.28,15.1179]
[1718496817729,2.7151,145.38,145.28,15.1179]
[1718496817730,5.61,145.34,145.28,15.1179]
[1718496818019,5.61,145.34,145.29,5.61]
[1718496819640,5.61,145.32,145.26,6.3223]
[1718496819951,5.61,145.32,145.26,5.61]
[1718496821227,5.61,145.32,145.24,15.1179]
[1718496821434,5.61,145.31,145.26,5.61]
[1718496821737,5.61,145.31,145.25,5.61]
[1718496823434,16.5438,145.35,145.26,0.34]
[1718496823615,5.61,145.34,145.28,5.61]
[1718496824225,5.61,145.32,145.25,0.51]
[1718496824413,5.61,145.32,145.26,5.61]
[1718496824611,5.61,145.31,145.26,5.61]
[1718496824831,5.61,145.31,145.24,15.1179]
[1718496825158,5.61,145.31,145.26,5.61]
[1718496825705,5.61,145.3,145.24,15.1179]
[1718496826014,5.61,145.3,145.25,5.61]
[1718496826216,5.61,145.31,145.25,5.61]
[1718496829705,2.7157,145.34,145.25,5.61]
[1718496829910,5.61,145.31,145.25,5.61]
[1718496836846,5.61,145.31,145.24,15.1179]
[1718496837053,5.61,145.31,145.25,5.61]
[1718496839445,5.61,145.31,145.26,5.61]
[1718496839621,16.5438,145.35,145.27,0.17]
[1718496839832,5.61,145.34,145.26,0.34]
[1718496840035,5.61,145.33,145.28,5.61]
[1718496840242,5.61,145.33,145.27,5.61]
[1718496841941,5.61,145.32,145.27,5.61]
[1718496843141,5.61,145.32,145.25,0.34]
[1718496843354,5.61,145.31,145.25,0.17]
[1718496843660,5.61,145.31,145.24,15.1179]
[1718496843832,5.61,145.31,145.25,5.61]
[1718496847449,5.61,145.31,145.26,5.61]
[1718496848639,5.61,145.32,145.26,5.61]
[1718496848842,5.61,145.32,145.27,5.61]
[1718496849033,19.0895,145.35,145.27,5.61]
[1718496849034,5.61,145.33,145.27,5.61]
[1718496851257,16.5438,145.35,145.28,5.61]
[1718496851462,5.61,145.34,145.28,5.61]
[1718496852158,5.61,145.33,145.28,5.61]
[1718496855948,16.5438,145.35,145.28,5.61]
[1718496856148,5.61,145.33,145.27,5.61]
[1718496858938,5.61,145.33,145.25,0.17]
[1718496859146,5.61,145.33,145.27,5.61]
[1718496859346,5.61,145.31,145.24,15.1179]
[1718496859700,5.61,145.31,145.26,5.61]
[1718496860378,5.61,145.32,145.26,5.61]
[1718496861071,5.61,145.32,145.27,5.61]
[1718496863954,5.61,145.33,145.27,5.61]
[1718496864157,16.5438,145.35,145.28,5.61]
[1718496864158,5.61,145.34,145.28,5.61]
[1718496865276,5.61,145.33,145.27,5.61]
[1718496866568,5.61,145.33,145.24,15.1179]
[1718496866774,5.61,145.32,145.26,5.61]
[1718496886030,16.5438,145.35,145.25,0.17]
[1718496886237,5.61,145.34,145.28,5.61]
[1718496890733,13.82257195,145.38,145.29,15.2291]
[1718496891032,8.1554,145.36,145.3,5.61]
[1718496891225,5.61,145.34,145.29,15.2291]
[1718496901023,5.61,145.35,145.29,20.8391]
[1718496901742,5.61,145.35,145.29,15.2291]
[1718496901946,5.61,145.34,145.29,15.2291]
[1718496906142,5.61,145.35,145.29,20.8391]
[1718496906523,5.61,145.36,145.3,5.61]
[1718496906729,7.6337,145.41,145.34,5.61]
[1718496906935,5.61,145.4,145.34,5.61]
[1718496907154,8.1547,145.4,145.34,5.61]
[1718496907534,5.61,145.39,145.34,5.61]
[1718496909455,6.2142,145.42,145.35,5.61]
[1718496909456,7.6331,145.42,145.35,5.61]
[1718496909633,5.61,145.41,145.36,5.61]
[1718496910131,31.0535,145.42,145.36,5.61]
[1718496910327,28.5091,145.42,145.36,5.61]
[1718496910567,2.5445,145.41,145.36,5.61]
[1718496910732,22.8985,145.43,145.36,5.61]
[1718496910931,8.1543,145.42,145.33,15.6823]
[1718496911137,5.61,145.42,145.37,5.61]
[1718496911335,10.6991,145.41,145.33,15.6823]
[1718496911555,8.1547,145.4,145.35,5.61]
[1718496912345,5.61,145.4,145.35,5.61]
[1718496913084,8.1547,145.4,145.35,5.61]
[1718496913364,5.61,145.4,145.34,5.61]
[1718496913735,5.0889,145.42,145.35,5.61]
[1718496913948,5.61,145.4,145.35,5.61]
[1718496914746,20.3534,145.43,145.35,5.61]
[1718496914964,5.61,145.41,145.33,15.6823]
[1718496915147,5.61,145.41,145.35,5.61]
[1718496915555,5.61,145.4,145.35,5.61]
[1718496915751,8.1545,145.41,145.35,5.61]
[1718496915964,5.61,145.41,145.35,5.61]
[1718496916178,2.5444,145.42,145.35,5.61]
[1718496916349,5.61,145.41,145.35,5.61]
[1718496917769,5.61,145.4,145.33,15.6823]
[1718496917980,2.885,145.39,145.33,15.6823]
[1718496918158,5.61,145.36,145.33,15.6823]
[1718496918778,5.61,145.37,145.33,15.6823]
[1718496920160,5.61,145.38,145.33,15.6823]
[1718496920747,5.61,145.39,145.33,21.2923]
[1718496921050,5.61,145.39,145.34,5.61]
[1718496923847,5.61,145.39,145.33,21.2923]
[1718496924055,8.155,145.38,145.33,15.6823]
[1718496924260,5.61,145.37,145.33,15.6823]
[1718496937598,5.61,145.38,145.33,15.6823]
[1718496941977,2.5445,145.41,145.33,15.6823]
[1718496942179,5.61,145.39,145.33,21.2923]
[1718496954115,2.5447,145.4,145.33,21.2923]
[1718496954413,5.61,145.39,145.33,21.2923]
[1718496956711,0.34,145.42,145.35,5.61]
[1718496956923,32.62117345,145.43,145.36,5.61]
[1718496957092,5.61,145.42,145.36,5.61]
[1718496958117,7.6307,145.47,145.4,5.61]
[1718496958322,5.61,145.46,145.4,5.61]
[1718496958517,2.5435,145.47,145.41,5.61]
[1718496958729,8.1535,145.47,145.41,5.61]
[1718496958897,5.61,145.47,145.41,5.61]
[1718496959096,13.2404,145.47,145.41,5.61]
[1718496959289,7.6304,145.47,145.41,5.61]
[1718496959490,13.2404,145.47,145.41,5.61]
[1718496959691,274.5025,145.49,145.41,5.61]
[1718496959912,5.61,145.47,145.41,5.61]
[1718496960108,256.7,145.49,145.41,5.61]
[1718496960288,256.7,145.49,145.43,5.61]
[1718496960709,262.31,145.49,145.43,5.61]
[1718496960911,264.8531,145.49,145.43,5.61]
[1718496961100,277.5689,145.49,145.41,15.0341]
[1718496961300,264.3296,145.49,145.41,15.0341]
[1718496961501,5.61,145.48,145.41,15.0341]
[1718496961696,271.959,145.49,145.41,15.0341]
[1718496961912,8.1533,145.48,145.41,15.0341]
[1718496962220,5.61,145.48,145.41,15.0341]
[1718496962815,8.1533,145.48,145.41,15.0341]
[1718496963039,5.61,145.48,145.41,15.0341]
[1718496964336,8.1533,145.48,145.41,15.0341]
[1718496964506,7.63,145.48,145.41,15.0341]
[1718496964708,5.61,145.47,145.41,20.6441]
[1718496971202,5.61,145.45,145.41,15.0341]
[1718496971813,256.7,145.49,145.41,20.6441]
[1718496971814,5.61,145.46,145.41,20.6441]
[1718496972048,271.9591,145.49,145.41,20.6441]
[1718496972343,5.61,145.46,145.41,20.6441]
[1718496972942,5.61,145.46,145.41,15.0341]
[1718496973244,5.61,145.46,145.41,20.6441]
[1718496975016,5.61,145.47,145.41,20.6441]
[1718496977867,7.628,145.52,145.44,5.61]
[1718496978159,5.61,145.5,145.44,5.61]
[1718496978852,2.5424,145.53,145.42,6.1764]
[1718496979043,22.8812,145.54,145.47,5.61]
[1718496979368,5.61,145.52,145.46,5.61]
[1718496980062,8.1526,145.52,145.46,5.61]
[1718496980229,13.2378,145.52,145.44,16.8009]
[1718496980562,13.2378,145.52,145.46,5.61]
[1718496980857,5.61,145.51,145.45,5.61]
[1718496981645,8.1526,145.52,145.46,5.61]
[1718496982958,5.61,145.51,145.46,5.61]
[1718496983473,13.2378,145.52,145.46,5.61]
[1718496983842,8.1526,145.52,145.46,5.61]
[1718496984045,2.5426,145.52,145.46,5.61]
[1718496984280,8.1526,145.52,145.46,5.61]
[1718496985166,13.2378,145.52,145.46,5.61]
[1718496986046,20.8656,145.52,145.46,5.61]
[1718496988150,8.1527,145.51,145.44,16.8009]
[1718496988341,5.61,145.51,145.46,5.61]
[1718496990169,8.1527,145.52,145.46,5.61]
[1718496990768,13.2379,145.52,145.46,5.61]
[1718496991070,5.61,145.49,145.44,16.6309]
[1718496994988,15.2569,145.51,145.44,16.6309]
[1718496995165,7.6286,145.51,145.44,16.6309]
[1718496997866,2.5429,145.51,145.44,16.6309]
[1718496998680,25.427,145.52,145.44,16.6309]
[1718496998988,2.5427,145.51,145.44,16.6309]
[1718496999160,25.427,145.52,145.44,16.6309]
[1718497000889,22.8869,145.5,145.44,16.6309]
[1718497001194,5.61,145.47,145.44,16.6309]
[1718497004805,7.34750497,145.51,145.42,6.0064]
[1718497004806,5.61,145.46,145.42,6.0064]
[1718497006165,5.61,145.44,145.4,15.3907]
[1718497009185,5.61,145.45,145.4,21.0007]
[1718497009587,5.61,145.46,145.4,21.0007]
[1718497010697,5.61,145.45,145.4,21.0007]
[1718497011899,5.61,145.45,145.4,15.3907]
[1718497012091,5.61,145.45,145.4,21.0007]
[1718497012483,5.61,145.45,145.4,15.3907]
[1718497012689,5.61,145.45,145.4,21.0007]
[1718497014205,5.61,145.45,145.4,15.3907]
[1718497019007,5.61,145.44,145.4,15.3907]
[1718497020514,25.4347,145.47,145.4,15.3907]
[1718497020515,5.61,145.43,145.4,15.3907]
[1718497024003,2.5436,145.46,145.38,6.6254]
[1718497024004,5.61,145.42,145.38,6.6254]
[1718497025519,5.61,145.41,145.36,15.9807]
[1718497025704,5.61,145.41,145.36,21.5907]
[1718497026015,5.61,145.41,145.36,15.9807]
[1718497026313,2.5443,145.42,145.36,15.9807]
[1718497026514,5.61,145.4,145.36,15.9807]
[1718497027490,22.8982,145.43,145.31,21.5081969]
[1718497027491,5.61,145.38,145.31,21.5081969]
[1718497027725,5.61,145.37,145.32,5.61]
[1718497030015,5.61,145.37,145.31,15.9807]
[1718497030404,5.61,145.37,145.31,21.5907]
[1718497031600,5.61,145.37,145.31,15.9807]
[1718497031922,5.61,145.37,145.31,21.5907]
[1718497034224,0.34,145.41,145.32,5.61]
[1718497034389,5.61,145.38,145.32,5.61]
[1718497034703,5.61,145.38,145.31,15.9807]
[1718497034704,5.61,145.38,145.33,5.61]
[1718497037123,5.61,145.39,145.34,5.61]
[1718497037298,5.61,145.4,145.34,5.61]
[1718497041400,8.1547,145.4,145.34,5.61]
[1718497041906,13.2441,145.4,145.34,5.61]
[1718497042105,5.61,145.39,145.34,5.61]
[1718497042298,5.61,145.39,145.33,5.61]
[1718497045035,5.61,145.39,145.34,5.61]
[1718497051230,25.446,145.41,145.34,5.61]
[1718497051433,5.61,145.4,145.34,5.61]
[1718497051740,8.1547,145.4,145.34,5.61]
[1718497052340,13.2441,145.4,145.34,5.61]
[1718497052917,8.1547,145.4,145.34,5.61]
[1718497057044,5.61,145.4,145.34,5.61]
[1718497057220,8.1547,145.4,145.34,5.61]
[1718497060215,13.2441,145.4,145.34,5.61]
[1718497062744,7.18186261,145.42,145.35,16.5529]
[1718497063045,13.2431,145.42,145.36,5.61]
[1718497063223,31.0536,145.42,145.36,5.61]
[1718497063420,25.4436,145.42,145.36,5.61]
[1718497063744,31.0536,145.42,145.36,5.61]
[1718497064220,2.5445,145.41,145.36,5.61]
[1718497066549,7.6335,145.41,145.36,5.61]
[1718497066745,7.6341,145.4,145.35,22.1629]
[1718497066944,13.2447,145.39,145.35,16.5529]
[1718497067549,5.61,145.38,145.35,16.5529]
[1718497067748,13.2459,145.37,145.31,22.7481]
[1718497068050,31.0625,145.37,145.31,28.3581]
[1718497068352,13.2459,145.37,145.31,28.3581]
[1718497068522,8.1553,145.37,145.31,28.3581]
[1718497068843,5.61,145.37,145.31,28.3581]
[1718497069627,5.61,145.37,145.32,5.61]
[1718497071234,5.61,145.37,145.31,28.3581]